bitfinex-derivatives/quotes_ETHF0:USTF0_20251021
["timestamp","ask_amount","ask_price","bid_price","bid_amount"]
[1761050575296,1.25838,3914.0,3913.9,0.7816]
[1761050577098,1.25838,3914.0,3913.9,1.24139]
[1761050578587,0.45976,3914.2,3914.1,0.45976]
[1761050578792,0.69226,3914.2,3914.1,0.7526]
[1761050579191,0.2325,3914.2,3914.1,1.21236]
[1761050579595,0.2325,3914.4,3914.3,0.7526]
[1761050579797,0.2325,3914.4,3914.3,1.21234]
[1761050580491,0.45968,3914.8,3914.7,0.45969]
[1761050580695,1.24776,3915.0,3914.9,0.7526]
[1761050581200,0.69221,3914.6,3914.5,1.02461]
[1761050581508,1.24781,3914.6,3914.5,0.2168]
[1761050581690,1.24781,3914.6,3914.5,0.5369]
[1761050582392,1.24779,3914.8,3914.7,0.7526]
[1761050582586,1.24779,3914.8,3914.7,1.21229]
[1761050582587,0.69219,3914.8,3914.7,1.21229]
[1761050582889,0.45969,3914.8,3914.7,1.21229]
[1761050583298,0.69219,3914.8,3914.7,1.21229]
[1761050584802,0.2325,3914.8,3914.7,1.21229]
[1761050585102,0.91969158,3915.1,3915.0,0.885]
[1761050585299,0.00223158,3915.1,3915.0,1.34466]
[1761050586000,0.46188158,3915.1,3915.0,1.34466]
[1761050586205,0.23473158,3915.1,3915.0,1.34466]
[1761050586697,0.00223158,3915.1,3915.0,1.34466]
[1761050587594,0.23473158,3915.1,3915.0,1.34466]
[1761050587791,0.5628,3914.5,3914.4,0.2168]
[1761050588099,1.24782,3914.5,3914.4,0.7526]
[1761050589006,1.38622,3914.5,3914.4,0.5369]
[1761050589497,1.24782,3914.5,3914.4,0.7526]
[1761050590291,0.7881,3914.7,3914.5,0.1324]
[1761050590505,1.2478,3914.7,3914.6,1.21231]
[1761050590798,1.24779,3914.7,3914.6,0.7526]
[1761050591205,0.2325,3914.7,3914.6,1.21231]
[1761050591400,1.24999158,3915.1,3915.0,0.7526]
[1761050591600,1.24999158,3915.1,3915.0,0.5369]
[1761050591801,1.24999158,3915.1,3914.7,0.45969]
[1761050591802,0.91748,3914.9,3914.8,0.5369]
[1761050592102,0.4597,3914.7,3914.6,0.9966]
[1761050592408,1.2478,3914.7,3914.6,0.99661]
[1761050593004,1.2478,3914.7,3914.6,0.2168]
[1761050593308,0.7881,3914.4,3914.3,1.21234]
[1761050594006,41.1303,3915.0,3914.9,1.21227]
[1761050594302,0.00223158,3915.1,3915.0,1.34466]
[1761050594705,0.23473158,3915.1,3915.0,1.34466]
[1761050595298,0.23473158,3915.1,3915.0,6.34466]
[1761050595299,0.00223158,3915.1,3915.0,6.34466]
[1761050595804,0.00223158,3915.1,3915.0,7.2501486]
[1761050595994,0.00223158,3915.1,3915.0,2.2501486]
[1761050596194,0.00223158,3915.1,3915.0,7.2501486]
[1761050596499,0.00223158,3915.1,3915.0,6.34466]
[1761050597107,0.00223158,3915.1,3915.0,1.34466]
[1761050599707,0.00223158,3915.1,3915.0,6.34466]
[1761050601102,0.00223158,3915.1,3915.0,1.34466]
[1761050606409,0.7514,3916.2,3916.1,0.7413]
[1761050606609,0.7514,3916.2,3916.1,1.20083]
[1761050607406,0.43481963,3916.2,3916.1,1.20083]
[1761050608208,0.76791963,3916.2,3916.1,1.20083]
[1761050609904,0.43481963,3916.2,3916.1,1.20083]
[1761050610717,0.22131963,3916.2,3916.1,1.20083]
[1761050611010,0.77731963,3916.2,3916.1,1.20083]
[1761050612917,0.22131963,3916.2,3916.1,1.20083]
[1761050613617,0.44421963,3916.2,3916.1,1.20083]
[1761050613817,0.77731963,3916.2,3916.1,1.20083]
[1761050618425,1.23683963,3916.2,3916.1,1.20083]
[1761050619327,1.23683963,3916.2,3916.1,0.98443]
[1761050619626,0.77731963,3916.2,3916.1,0.98443]
[1761050619924,41.57731963,3916.2,3916.1,0.98443]
[1761050621226,42.03683963,3916.2,3916.1,0.98443]
[1761050621416,40.80181963,3916.2,3916.1,0.7679]
[1761050621614,40.80181963,3916.2,3916.1,1.22743]
[1761050621816,41.26135963,3916.2,3916.1,0.45953]
[1761050622122,41.26135963,3916.2,3916.0,0.45954]
[1761050622123,1.23015,3916.1,3916.0,0.45954]
[1761050624821,1.23015,3916.1,3916.0,0.99994]
[1761050625522,0.3331,3916.0,3915.6,0.45959]
[1761050625725,0.4375,3915.6,3915.5,1.3579]
[1761050626026,0.2146,3915.6,3915.5,1.3579]
[1761050628122,0.2146,3915.6,3915.5,1.55791711]
[1761050629824,0.7706,3915.9,3915.8,1.22747]
[1761050631028,1.23015,3915.9,3915.8,1.22747]
[1761050631725,0.7706,3915.9,3915.8,1.22747]
[1761050633330,0.4375,3915.9,3915.8,1.22747]
[1761050633831,1.23015,3915.9,3915.8,1.22747]
[1761050634731,1.23015,3915.9,3915.8,0.7679]
[1761050634931,41.95062963,3916.2,3915.7,0.45957]
[1761050634932,1.23017,3915.8,3915.7,0.45957]
[1761050635532,42.03017,3915.8,3915.7,0.45957]
[1761050638532,0.5534,3915.3,3915.2,1.14546208]
[1761050638830,0.5534,3915.3,3915.2,1.81464006]
[1761050639131,41.3534,3915.3,3915.2,1.81464006]
[1761050639724,41.3534,3915.3,3915.2,1.93544006]
[1761050640528,40.8,3915.3,3915.2,1.93544006]
[1761050640826,40.8,3915.3,3915.2,7.40107661]
[1761050641223,9.2528,3916.5,3916.0,0.82195]
[1761050641224,0.3362,3916.1,3916.0,0.82195]
[1761050642022,0.3362,3916.4,3916.1,0.1208]
[1761050642226,40.80181963,3916.2,3916.1,0.3624]
[1761050642722,40.80181963,3916.2,3916.1,6.26917247]
[1761050642927,40.80181963,3916.2,3916.1,5.3624]
[1761050643735,0.3362,3917.2,3917.1,0.82182]
[1761050644234,0.7772,3917.2,3917.1,0.70102]
[1761050644435,0.7772,3917.2,3917.1,0.1208]
[1761050644641,0.7772,3917.2,3916.8,1.02662658]
[1761050644642,0.7772,3916.9,3916.8,1.02662658]
[1761050644830,0.7772,3916.9,3916.8,0.1208]
[1761050645138,1.23664,3916.9,3916.8,0.00299518]
[1761050645434,42.03664,3916.9,3916.8,0.00299518]
[1761050645632,41.5772,3916.9,3916.8,0.24459518]
[1761050646133,41.5772,3916.9,3916.8,0.00299518]
[1761050649939,46.5772,3916.9,3916.8,0.00299518]
[1761050650142,0.1287,3916.5,3916.0,9.115]
[1761050650331,0.7772,3916.1,3916.0,9.115]
[1761050650636,0.7772,3916.1,3916.0,9.2358]
[1761050651032,41.5772,3916.1,3916.0,9.2358]
[1761050651227,41.5772,3916.1,3916.0,9.23861374]
[1761050651936,41.5772,3916.1,3916.0,0.12361374]
[1761050652238,41.5772,3916.1,3916.0,0.24441374]
[1761050653748,41.1362,3916.1,3916.0,0.36521374]
[1761050655144,41.1362,3916.1,3916.0,0.82476374]
[1761050659242,41.59574,3916.1,3916.0,0.00281374]
[1761050660140,41.1362,3916.1,3916.0,0.46236374]
[1761050662548,41.59573,3916.1,3916.0,0.46236374]
[1761050663348,41.1362,3916.1,3916.0,0.70376374]
[1761050663548,41.1362,3916.1,3916.0,0.82446374]
[1761050664145,41.1362,3916.1,3916.0,0.70376374]
[1761050665744,41.1362,3916.1,3916.0,0.82446374]
[1761050666045,0.4456,3916.5,3916.4,0.5802]
[1761050666252,0.4456,3916.5,3916.4,0.7009]
[1761050666451,0.4456,3916.5,3916.4,0.8216]
[1761050666652,41.2456,3916.5,3916.4,0.8216]
[1761050667352,41.2456,3916.5,3916.4,0.7009]
[1761050669455,41.2456,3916.5,3916.4,0.5802]
[1761050669751,41.2456,3916.5,3916.4,0.4595]
[1761050669951,41.2456,3916.5,3916.0,0.00281374]
[1761050669952,0.3327,3916.4,3916.0,0.00281374]
[1761050670152,0.4294,3916.1,3916.0,0.46236374]
[1761050670358,0.7621,3916.1,3916.0,0.46236374]
[1761050673360,0.7621,3916.1,3916.0,0.58336374]
[1761050675562,0.7621,3916.1,3916.0,0.70436374]
[1761050676770,0.3327,3916.1,3916.0,0.82536374]
[1761050677069,0.5581,3917.0,3916.9,1.23005]
[1761050677271,41.3581,3917.0,3916.9,1.23005]
[1761050678267,41.3581,3917.0,3916.9,0.89165]
[1761050678868,41.6908,3917.0,3916.9,0.89165]
[1761050679076,41.5621,3917.0,3916.9,1.23005]
[1761050679669,41.6892,3917.0,3916.9,1.23005]
[1761050679967,41.6892,3917.0,3916.9,0.45944]
[1761050681370,41.6892,3917.0,3916.9,1.01754]
[1761050682674,41.6892,3917.0,3916.9,0.67914]
[1761050682869,41.1327,3917.0,3916.9,1.23004]
[1761050683178,41.2598,3917.0,3916.9,1.23004]
[1761050685178,41.2598,3917.0,3916.9,0.89164]
[1761050685772,41.2598,3917.0,3916.9,0.45944]
[1761050689874,41.2598,3917.0,3916.2,6.5374]
[1761050689875,0.3327,3916.4,3916.3,0.45952]
[1761050690071,0.7621,3916.4,3916.3,0.45952]
[1761050691381,0.7621,3916.4,3916.3,0.67922]
[1761050692180,0.7621,3916.4,3916.3,1.23012]
[1761050693280,0.7621,3916.4,3916.3,0.89172]
[1761050693579,0.7621,3916.4,3916.3,1.01762]
[1761050693785,0.7621,3916.4,3916.3,0.45952]
[1761050694379,0.7621,3916.4,3916.3,0.67922]
[1761050696184,0.7621,3916.4,3916.3,1.23012]
[1761050701288,40.9271,3917.0,3916.9,0.45944]
[1761050701989,41.2586,3917.0,3916.9,0.99144]
[1761050702184,41.2586,3917.0,3916.9,1.22174]
[1761050702577,41.2586,3917.0,3916.9,0.67704]
[1761050703086,0.4449,3916.6,3916.5,0.45949]
[1761050703791,0.7764,3916.6,3916.5,1.22179]
[1761050705990,0.5519,3916.6,3916.5,1.22179]
[1761050706195,0.5519,3916.6,3916.5,1.36029]
[1761050706988,40.9271,3917.0,3916.9,0.45944]
[1761050707195,0.44703522,3917.2,3917.1,1.22172]
[1761050707398,0.4449,3917.2,3917.1,1.22172]
[1761050707693,0.319,3917.8,3917.7,0.99135]
[1761050708100,0.319,3917.8,3917.7,1.22165]
[1761050708291,41.119,3917.8,3917.7,1.22165]
[1761050708491,41.12203926,3917.8,3917.7,1.22165]
[1761050709093,0.297,3917.3,3917.2,0.3144]
[1761050709291,0.4455,3917.1,3917.0,0.77383]
[1761050709491,0.4455,3916.9,3916.8,0.77385]
[1761050709996,41.97341926,3917.8,3916.1,0.3144]
[1761050709997,0.1485,3916.2,3916.1,0.3144]
[1761050710196,0.297,3916.2,3916.1,0.99154]
[1761050710393,0.4455,3916.1,3916.0,0.46236374]
[1761050710792,0.4455,3916.1,3916.0,0.77676374]
[1761050711699,0.1485,3916.1,3916.0,1.36316374]
[1761050712095,0.297,3916.1,3916.0,1.36316374]
[1761050712999,0.1485,3916.1,3916.0,1.36316374]
[1761050713498,0.297,3916.1,3916.0,1.36316374]
[1761050714804,0.4455,3916.1,3916.0,0.77676374]
[1761050715398,0.297,3916.1,3916.0,1.13286374]
[1761050715696,0.297,3916.1,3916.0,1.36316374]
[1761050715902,0.4455,3916.1,3916.0,0.77676374]
[1761050716392,0.4455,3916.1,3916.0,0.31721374]
[1761050716592,0.4455,3916.1,3916.0,0.46236374]
[1761050716792,0.4455,3916.1,3916.0,0.77676374]
[1761050716990,0.4455,3916.1,3916.0,0.46236374]
[1761050717791,0.7576,3915.6,3915.5,0.3422]
[1761050718000,0.447,3915.4,3915.3,0.80184]
[1761050718803,0.149,3915.0,3914.5,9.6706]
[1761050718993,0.298,3914.7,3914.6,1.01612]
[1761050719402,0.298,3914.7,3914.6,0.80192]
[1761050719403,0.447,3914.7,3914.6,0.80192]
[1761050719704,0.447,3914.7,3914.6,1.01612]
[1761050720001,0.298,3914.7,3914.6,1.01612]
[1761050720189,0.298,3914.7,3914.6,0.80192]
[1761050720395,0.298,3914.7,3914.6,1.01612]
[1761050721906,0.298,3914.7,3914.6,1.22902]
[1761050722206,0.298,3914.7,3914.6,1.01612]
[1761050722802,0.9067,3914.7,3914.6,0.3422]
[1761050723206,0.9067,3914.7,3914.6,0.80192]
[1761050723605,0.9067,3914.7,3914.6,0.3422]
[1761050723800,0.90672,3914.6,3914.5,9.44637166]
[1761050723998,0.90672,3914.6,3914.5,0.00218733]
[1761050724401,0.75772,3914.6,3914.5,0.69758733]
[1761050724598,0.75772,3914.6,3914.5,1.15731733]
[1761050724798,0.298,3914.6,3914.5,1.57069836]
[1761050725912,41.26177708,3915.0,3914.9,0.7693]
[1761050726414,0.90668,3914.9,3914.8,0.3422]
[1761050726601,0.7577,3914.7,3914.6,0.3422]
[1761050726907,0.75769,3914.7,3914.6,1.229]
[1761050727110,0.90669,3914.7,3914.6,0.3422]
[1761050727406,0.90669,3914.7,3914.6,0.80191]
[1761050727708,0.298,3914.7,3914.6,1.01611]
[1761050728009,0.298,3914.7,3914.6,1.22931]
[1761050728300,0.298,3914.7,3914.6,0.7696]
[1761050728301,0.7577,3914.7,3914.6,0.7696]
[1761050728705,0.1473,3914.8,3914.7,0.3227]
[1761050729009,0.75429,3914.8,3914.7,0.5388]
[1761050729300,0.90161,3914.6,3914.5,0.32488733]
[1761050729501,0.90161,3914.6,3914.5,0.67218733]
[1761050729706,0.75431,3914.6,3914.5,1.13190733]
[1761050729908,0.75431,3914.6,3914.5,0.88538733]
[1761050730208,0.75431,3914.6,3914.5,1.34510733]
[1761050730508,0.75431,3914.6,3914.5,0.88538733]
[1761050731615,0.90161,3914.6,3914.5,0.67218733]
[1761050732206,0.90161,3914.6,3914.5,0.00218733]
[1761050733611,10.00861,3914.6,3914.5,0.00218733]
[1761050734609,10.00861,3914.6,3914.5,0.32488733]
[1761050734799,10.00861,3914.6,3914.5,0.91580733]
[1761050735005,10.00861,3914.6,3914.5,1.13190733]
[1761050735513,10.00861,3914.6,3914.5,0.67218733]
[1761050737614,9.86131,3914.6,3914.5,1.34510733]
[1761050738513,10.00861,3914.6,3914.5,1.13190733]
[1761050739116,10.00861,3914.6,3914.5,0.67218733]
[1761050739608,10.00861,3914.6,3914.5,1.13190733]
[1761050739812,9.86131,3914.6,3914.5,1.13190733]
[1761050740210,0.2946,3914.6,3914.5,1.34510733]
[1761050740412,0.75431,3914.6,3914.5,1.34510733]
[1761050740607,0.2946,3914.6,3914.5,1.34510733]
[1761050740915,0.1473,3914.6,3914.5,1.34510733]
[1761050742415,0.75431,3914.6,3914.5,1.34510733]
[1761050747614,49.90909708,3915.0,3914.9,1.21168]
[1761050748519,0.90161,3914.6,3914.5,0.00218733]
[1761050748723,9.86131,3914.6,3914.5,0.88538733]
[1761050749617,9.86131,3914.6,3914.5,0.67218733]
[1761050750012,9.86131,3914.6,3914.5,1.34510733]
[1761050750422,0.75431,3914.6,3914.5,0.88538733]
[1761050750721,0.90161,3914.6,3914.5,0.45608733]
[1761050751716,0.90161,3914.6,3914.5,0.32488733]
[1761050752719,0.1473,3913.9,3913.6,0.90017122]
[1761050752921,0.90173,3913.6,3913.5,0.3227]
[1761050753314,41.70173,3913.6,3913.5,0.3227]
[1761050753719,41.70173,3913.6,3913.5,0.00196231]
[1761050754822,41.70173,3913.6,3913.5,0.32466231]
[1761050755124,41.70173,3913.6,3913.5,0.00196231]
[1761050757422,41.70173,3913.6,3913.5,0.32466231]
[1761050758527,41.70173,3913.6,3913.5,0.00196231]
[1761050759724,0.45991,3912.9,3912.8,0.3157]
[1761050759919,0.90841,3912.9,3912.8,0.3157]
[1761050760427,0.90841,3912.9,3912.5,0.54980775]
[1761050760428,0.90844,3912.6,3912.5,0.54980775]
[1761050760617,0.90844,3912.6,3912.5,0.35006406]
[1761050760822,0.90844,3912.6,3912.5,0.66576406]
[1761050761224,0.75894,3912.6,3912.5,0.86817181]
[1761050761426,0.90844,3912.6,3912.5,0.86817181]
[1761050762223,41.55894,3912.6,3912.5,0.86817181]
[1761050762424,41.55894,3912.6,3912.5,1.09537181]
[1761050762922,41.70844,3912.6,3912.5,0.65197181]
[1761050763124,41.70844,3912.6,3912.5,0.20507181]
[1761050763523,41.70844,3912.6,3912.5,0.00266406]
[1761050763728,50.81644,3912.6,3912.5,0.00266406]
[1761050764132,55.81644,3912.6,3912.5,0.00266406]
[1761050765829,0.90858,3911.4,3911.3,0.3157]
[1761050766028,0.75908,3911.4,3911.3,0.5319]
[1761050766728,0.76177988,3911.4,3911.3,0.53408117]
[1761050766930,41.56177988,3911.4,3911.3,0.99418117]
[1761050767432,41.71127988,3911.4,3911.3,0.53408117]
[1761050767730,41.71127988,3911.4,3911.3,0.00218117]
[1761050769730,41.10169988,3911.4,3911.3,1.22137117]
[1761050769925,40.80269988,3911.4,3911.3,1.22137117]
[1761050771034,0.00269988,3911.4,3911.3,1.22137117]
[1761050771225,0.00269988,3911.4,3911.3,6.22137117]
[1761050771425,0.1495,3912.8,3912.3,0.5429]
[1761050771628,1.44293259,3914.0,3912.0,0.1317]
[1761050771629,0.299,3913.5,3913.1,0.45988]
[1761050771928,0.299,3913.5,3913.4,0.7591]
[1761050772222,0.4485,3913.5,3913.4,0.5319]
[1761050772427,0.45111536,3913.5,3913.4,0.3157]
[1761050772635,0.1495,3913.3,3913.2,0.3157]
[1761050772935,0.1495,3912.8,3912.6,0.3157]
[1761050773141,0.299,3912.7,3912.6,0.5319]
[1761050773331,41.099,3912.7,3912.6,0.5319]
[1761050774128,41.099,3912.7,3912.6,0.7591]
[1761050775532,40.9495,3912.7,3912.6,0.7591]
[1761050775737,40.8,3912.7,3912.6,0.7591]
[1761050778442,0.2988,3913.2,3913.1,0.4286]
[1761050778829,41.0988,3913.2,3913.1,0.7687]
[1761050782235,0.00261536,3913.5,3913.4,0.4286]
[1761050782439,0.00261536,3913.5,3913.4,0.7687]
[1761050782831,0.00261536,3913.5,3913.4,1.22855]
[1761050783946,0.15201536,3913.5,3913.4,1.22855]
[1761050784133,0.45081536,3913.5,3913.4,1.01535]
[1761050784337,0.45081536,3913.5,3913.4,0.3401]
[1761050784844,0.30141536,3913.5,3913.4,0.5555]
[1761050785437,0.30141536,3913.5,3913.4,0.7687]
[1761050786033,0.15201536,3913.5,3913.4,0.7687]
[1761050786745,0.15201536,3913.5,3913.4,0.96978161]
[1761050787237,0.30141536,3913.5,3913.4,0.5555]
[1761050787443,0.30141536,3913.5,3913.4,0.7687]
[1761050787631,0.00261536,3913.5,3913.4,0.7687]
[1761050788840,0.00261536,3913.5,3913.4,0.96918718]
[1761050789643,0.30221536,3913.5,3913.4,0.75598718]
[1761050789838,0.4494,3912.4,3912.3,0.3379]
[1761050790037,0.60979,3912.2,3912.0,0.1317]
[1761050790236,1.14984,3912.7,3911.3,0.00218117]
[1761050790237,0.2996,3911.8,3911.7,0.5575]
[1761050790444,0.4494,3911.8,3911.7,0.3379]
[1761050791143,0.1498,3911.6,3911.5,0.4696]
[1761050791442,0.4494,3911.6,3911.5,0.4696]
[1761050791745,0.4494,3911.4,3911.3,0.34008117]
[1761050792145,0.2996,3911.4,3911.3,0.34008117]
[1761050793157,0.2996,3911.4,3911.3,0.79178117]
[1761050793356,0.4494,3911.4,3911.3,0.34008117]
[1761050793549,0.1498,3911.4,3911.3,0.79178117]
[1761050793748,0.2996,3911.7,3911.6,0.7896]
[1761050794258,0.90948,3911.4,3911.3,0.34008117]
[1761050794459,0.2996,3911.4,3911.3,0.79178117]
[1761050796664,0.60986,3911.7,3911.6,0.7896]
[1761050796850,0.1498,3911.7,3911.6,0.7896]
[1761050797050,0.60984,3911.8,3911.7,0.3379]
[1761050797364,0.75964,3911.8,3911.7,0.7896]
[1761050797556,0.75964,3911.8,3911.7,0.5575]
[1761050797856,0.90944,3911.8,3911.7,0.3379]
[1761050798460,0.75964,3911.8,3911.7,0.5575]
[1761050798760,0.75964,3911.8,3911.7,0.7896]
[1761050800360,0.75964,3911.8,3911.7,1.24965]
[1761050800558,0.60982,3912.0,3911.9,0.7896]
[1761050800759,0.60982,3912.0,3911.9,1.24962]
[1761050800958,0.75962,3912.0,3911.9,0.7896]
[1761050801161,0.90942,3912.0,3911.9,0.3379]
[1761050801356,0.60982,3912.0,3911.9,0.7896]
[1761050801862,0.75962,3912.0,3911.9,0.5575]
[1761050802658,49.924,3912.1,3911.9,1.24962]
[1761050802862,40.8,3912.1,3912.0,1.38691]
[1761050803156,41.4098,3912.1,3912.0,0.6948]
[1761050803358,41.4098,3912.1,3912.0,0.4752]
[1761050803752,41.26,3912.1,3912.0,1.38691]
[1761050804260,40.8,3912.1,3912.0,1.38691]
[1761050805352,41.26,3912.1,3912.0,1.38691]
[1761050805552,40.8,3912.1,3912.0,1.38691]
[1761050805759,41.26,3912.1,3912.0,1.38691]
[1761050807062,40.8,3912.1,3912.0,1.38691]
[1761050807464,41.26,3912.1,3912.0,1.38691]
[1761050807661,40.8,3912.1,3912.0,1.38691]
[1761050808657,9.87457,3912.5,3912.4,0.5575]
[1761050809165,50.67457,3912.5,3912.4,1.01747]
[1761050809556,50.67457,3912.5,3912.4,1.24957]
[1761050809956,50.67455,3912.5,3912.4,1.24957]
[1761050810360,41.55955,3912.5,3912.4,1.24957]
[1761050811263,41.55955,3912.5,3912.4,0.7896]
[1761050812560,41.55955,3912.5,3912.4,0.5575]
[1761050812561,41.70935,3912.5,3912.4,0.5575]
[1761050813159,41.55955,3912.5,3912.4,0.5575]
[1761050813952,40.8,3912.5,3912.4,1.24957]
[1761050814467,0.1498,3912.6,3912.5,1.38685]
[1761050814659,0.2996,3912.6,3912.5,1.38685]
[1761050814859,40.9498,3912.6,3912.5,1.38685]
[1761050816057,0.45991,3912.9,3912.7,0.45993]
[1761050816265,0.1498,3912.8,3912.7,1.24953]
[1761050816464,0.60972,3912.8,3912.7,1.24953]
[1761050816664,41.40972,3912.8,3912.7,0.7896]
[1761050817270,41.55952,3912.8,3912.7,0.3379]
[1761050817659,41.40972,3912.8,3912.7,0.5575]
[1761050817966,41.40972,3912.8,3912.7,1.01743]
[1761050818465,41.40972,3912.8,3912.7,1.22843]
[1761050819170,41.55972,3912.8,3912.7,0.5575]
[1761050819371,41.55972,3912.8,3912.7,0.3379]
[1761050819571,41.55972,3912.8,3912.7,0.57]
[1761050819771,41.40972,3912.8,3912.7,1.02993]
[1761050820172,40.9498,3912.8,3912.7,1.02993]
[1761050820467,40.9498,3912.8,3912.5,0.1373]
[1761050820468,9.72345536,3913.5,3913.4,0.4431]
[1761050820661,9.87345536,3913.5,3913.4,0.7652]
[1761050821270,50.82345536,3913.5,3913.4,1.01405]
[1761050821575,50.36361536,3913.5,3913.4,1.01405]
[1761050821966,1.14933,3914.5,3914.3,0.45974]
[1761050821967,0.1485,3914.5,3914.3,0.45974]
[1761050822267,0.1485,3914.5,3914.0,0.1274]
[1761050822268,0.4455,3914.4,3914.0,0.1274]
[1761050822466,0.4455,3914.2,3914.1,0.3221]
[1761050823069,0.29933403,3914.2,3914.1,0.55624817]
[1761050823374,0.29933403,3914.2,3914.1,0.97686268]
[1761050823573,0.15083403,3914.2,3914.1,0.97686268]
[1761050823872,0.15083403,3914.2,3914.1,0.76724817]
[1761050823873,0.29933403,3914.2,3914.1,0.76724817]
[1761050824473,0.00233403,3914.2,3914.1,0.76724817]
[1761050826077,0.00233403,3914.2,3914.1,0.97358297]
[1761050827282,0.00233403,3914.2,3914.1,5.97358297]
[1761050827580,0.75661,3915.4,3915.3,0.2321]
[1761050827980,41.55661,3915.4,3915.3,0.5542]
[1761050828573,41.5585556,3915.4,3915.3,0.5542]
[1761050829077,0.7585556,3915.4,3915.3,0.7652]
[1761050829269,0.9070556,3915.4,3915.3,0.5542]
[1761050829469,0.7585556,3915.4,3915.3,0.5542]
[1761050829672,41.5585556,3915.4,3915.3,0.7652]
[1761050830677,41.0989456,3915.4,3915.3,1.22482]
[1761050830986,40.8019456,3915.4,3915.3,1.22482]
[1761050831282,0.0019456,3915.4,3915.3,1.22482]
[1761050832282,0.0019456,3915.4,3915.3,6.22482]
[1761050832586,0.60798,3916.5,3916.4,0.2321]
[1761050832882,0.90498,3916.5,3916.4,0.3221]
[1761050833587,0.7586676,3916.5,3916.4,0.5542]
[1761050834674,0.2991876,3916.5,3916.4,0.7652]
[1761050834878,0.7586776,3916.5,3916.4,0.7652]
[1761050835181,41.5586776,3916.5,3916.4,0.7652]
[1761050835382,41.4101776,3916.5,3916.4,0.7652]
[1761050835576,0.1506876,3916.5,3916.4,0.7652]
[1761050835777,0.1506876,3916.5,3916.0,0.4495]
[1761050835778,0.4455,3916.1,3916.0,0.4495]
[1761050835972,0.297,3916.1,3916.0,0.6816]
[1761050836579,0.297,3916.1,3915.6,0.5542]
[1761050836580,0.1485,3916.0,3915.6,0.5542]
[1761050836772,0.4455,3915.7,3915.6,0.45959]
[1761050836979,0.297,3915.7,3915.6,0.4431]
[1761050837181,0.297,3915.7,3915.6,1.22479]
[1761050837382,0.1485,3915.7,3915.6,1.22479]
[1761050837577,0.297,3916.2,3916.1,0.5542]
[1761050837777,0.75652,3916.2,3916.1,0.5542]
[1761050839384,0.297,3916.2,3916.1,1.22473]
[1761050839688,0.60802,3916.2,3916.1,1.22473]
[1761050839888,0.60802,3916.2,3916.1,0.7652]
[1761050840482,0.1485,3916.2,3916.1,1.22473]
[1761050840981,40.8,3916.4,3916.3,0.7717]
[1761050841181,40.8,3916.4,3916.3,1.23121]
[1761050841382,41.2595,3916.4,3916.3,0.7717]
[1761050842385,0.75471,3916.3,3916.2,0.7717]
[1761050842584,0.75471,3916.3,3916.2,0.5576]
[1761050842979,0.90231,3916.3,3916.2,0.5576]
[1761050843588,0.45955,3916.0,3915.8,0.45957]
[1761050843795,0.2952,3915.9,3915.8,1.01717]
[1761050844085,0.45953,3916.1,3915.8,0.7717]
[1761050844392,0.1476,3916.1,3916.0,1.36494]
[1761050844590,5.0747,3916.0,3914.1,0.00204817]
[1761050844798,0.4428,3914.2,3914.1,0.00204817]
[1761050845089,0.4428,3914.2,3913.5,0.1337]
[1761050845090,0.45981,3913.7,3913.5,0.1337]
[1761050845286,41.0952,3914.2,3912.5,2.0247]
[1761050845287,0.1476,3912.8,3912.7,0.5576]
[1761050845482,0.2952,3912.8,3912.7,0.5576]
[1761050845684,0.1476,3912.6,3912.5,0.3425]
[1761050845891,0.45988,3913.2,3912.5,0.5629]
[1761050846091,0.60749,3913.1,3913.0,0.2151]
[1761050846297,0.60754,3912.6,3912.5,0.1337]
[1761050846481,0.75514,3912.6,3912.5,0.1337]
[1761050846686,0.2952,3912.6,3912.5,0.4762]
[1761050846888,0.2952,3912.6,3912.5,0.6913]
[1761050847285,0.2952,3912.6,3912.5,0.69380862]
[1761050847997,0.2952,3912.6,3912.5,0.47870862]
[1761050848894,0.4431,3912.6,3912.5,0.00250862]
[1761050849289,0.2952,3912.6,3912.5,0.45210862]
[1761050849491,0.2952,3912.6,3912.5,0.66670862]
[1761050849991,0.2952,3912.6,3912.5,0.88820862]
[1761050851395,0.2955,3912.6,3912.5,0.88820862]
[1761050851700,0.1476,3912.6,3912.5,0.88820862]
[1761050852806,0.2955,3912.6,3912.5,0.88820862]
[1761050854102,0.4434,3912.6,3912.5,0.32380862]
[1761050854506,0.4434,3912.6,3912.5,0.00250862]
[1761050855406,0.2955,3912.6,3912.5,0.88820862]
[1761050856311,40.80220228,3913.1,3913.0,0.8857]
[1761050861207,40.80220228,3913.1,3913.0,0.6642]
[1761050861909,40.80220228,3913.1,3913.0,0.8857]
[1761050866404,40.95010228,3913.1,3913.0,0.4496]
[1761050866608,40.95010228,3913.1,3913.0,0.6642]
[1761050866812,0.2958,3912.7,3912.6,0.89603]
[1761050867511,0.1479,3912.7,3912.6,1.21733]
[1761050867914,41.26209228,3913.1,3913.0,1.12409]
[1761050868610,41.40999228,3913.1,3913.0,0.6642]
[1761050869105,0.1479,3912.7,3912.6,0.3213]
[1761050869310,0.4437,3912.7,3912.6,0.3213]
[1761050869508,0.2958,3912.7,3912.6,0.5359]
[1761050870208,40.80220228,3913.1,3913.0,0.6642]
[1761050870209,41.26209228,3913.1,3913.0,0.6642]
[1761050870714,41.40999228,3913.1,3913.0,0.4496]
[1761050872712,41.40999228,3913.1,3913.0,0.3213]
[1761050873009,0.4437,3912.8,3912.7,0.45992]
[1761050873313,40.80220228,3913.1,3913.0,0.8857]
[1761050874811,40.95010228,3913.1,3913.0,0.6642]
[1761050875805,40.80220228,3913.1,3913.0,0.8857]
[1761050877505,0.4437,3913.0,3912.9,0.7812]